bitfinex-derivatives/quotes_SOLF0:USTF0_20250830
["timestamp","ask_amount","ask_price","bid_price","bid_amount"]
[1756580149524,7.41,201.21,201.14,7.86]
[1756580160133,7.41,201.21,201.14,12.0225923]
[1756580162632,3.11468242,201.19,201.13,4.1625923]
[1756580162832,3.11468242,201.19,201.1,12.0225923]
[1756580163038,7.41,201.18,201.1,12.0225923]
[1756580165341,7.41,201.18,201.11,7.86]
[1756580170346,3.11468242,201.19,201.08,14.91727472]
[1756580170738,3.11468242,201.16,201.09,4.1625923]
[1756580170941,7.82,201.15,201.08,11.8025923]
[1756580173846,5.64,201.2,201.06,5.53484967]
[1756580173847,7.82,201.12,201.06,4.1625923]
[1756580174048,7.82,201.12,201.05,4.1625923]
[1756580174250,7.82,201.12,201.04,11.8025923]
[1756580174644,7.82,201.12,201.05,7.64]
[1756580176349,8.31146785,201.22,201.04,7.27727472]
[1756580176350,7.82,201.16,201.07,7.64]
[1756580180351,7.82,201.16,201.07,10.75468242]
[1756580180548,7.82,201.16,201.08,7.64]
[1756580194567,3.11468242,201.14,201.05,7.64]
[1756580194761,10.93468242,201.14,201.05,7.64]
[1756580196767,7.82,201.11,201.05,7.64]
[1756580196966,0.03463121,201.12,201.07,0.03164984]
[1756580197166,7.47,201.11,201.07,0.03164984]
[1756580197461,3.11468242,201.11,201.07,0.03164984]
[1756580197661,7.47,201.1,201.07,0.03164984]
[1756580198063,3.11468242,201.11,201.07,0.03164984]
[1756580199165,7.47,201.1,201.07,0.03164984]
[1756580200167,3.11468242,201.11,201.07,0.03164984]
[1756580200370,7.47,201.1,201.07,0.03164984]
[1756580200870,3.11468242,201.11,201.07,0.03164984]
[1756580201365,7.47,201.1,201.07,0.03164984]
[1756580201674,3.11468242,201.11,201.07,0.03164984]
[1756580203469,7.47,201.1,201.07,0.03164984]
[1756580203870,3.11468242,201.11,201.07,0.03164984]
[1756580205770,7.47,201.1,201.07,0.03164984]
[1756580205971,3.11468242,201.11,201.07,0.03164984]
[1756580206671,7.47,201.1,201.07,7.93164984]
[1756580207074,7.50463121,201.12,201.08,7.9]
[1756580207370,7.47,201.11,201.08,7.9]
[1756580213167,7.47,201.11,201.07,0.03164984]
[1756580213374,7.47,201.11,201.07,7.93164984]
[1756580213572,7.47,201.11,201.08,7.9]
[1756580216777,0.03463121,201.12,201.08,7.9]
[1756580216977,0.03463121,201.12,201.07,0.03164984]
[1756580217379,7.47,201.11,201.07,0.03164984]
[1756580217976,7.47,201.11,201.07,7.93164984]
[1756580218176,0.03463121,201.12,201.07,7.93164984]
[1756580218478,7.47,201.11,201.07,7.93164984]
[1756580218680,0.03463121,201.12,201.07,7.93164984]
[1756580219079,7.47,201.11,201.07,7.93164984]
[1756580219277,0.03463121,201.12,201.07,7.93164984]
[1756580219781,0.03463121,201.12,201.07,0.03164984]
[1756580219981,7.50463121,201.12,201.07,0.03164984]
[1756580220281,0.03463121,201.12,201.07,0.03164984]
[1756580220478,0.03463121,201.12,201.07,7.93164984]
[1756580220782,7.47,201.11,201.07,0.03164984]
[1756580222079,3.11468242,201.09,201.07,0.03164984]
[1756580222286,7.47,201.08,201.07,0.03164984]
[1756580225282,7.97,201.08,200.98,4.1625923]
[1756580225585,3.11468242,201.04,200.98,7.9]
[1756580226179,83.23404342,202.42,200.98,7.9]
[1756580226180,13.01097856,201.13,200.98,7.9]
[1756580226382,7.47,201.09,201.0,7.9]
[1756580226583,0.03294935,201.08,201.0,7.9]
[1756580234085,7.95,201.07,201.0,7.9]
[1756580234281,11.06468242,201.07,201.0,7.9]
[1756580235388,11.06468242,201.07,200.97,7.57]
[1756580235588,7.95,201.03,200.97,7.57]
[1756580236185,0.03247974,201.02,200.96,4.1625923]
[1756580236590,0.03247974,201.02,200.97,7.57]
[1756580236988,0.03247974,201.02,200.96,4.1625923]
[1756580237592,0.03247974,201.02,200.97,7.57]
[1756580237891,0.03247974,201.02,200.96,4.1625923]
[1756580238492,0.03247974,201.02,200.97,7.57]
[1756580238893,0.03247974,201.02,200.96,4.1625923]
[1756580239099,7.95,201.01,200.97,7.57]
[1756580242794,7.95,201.01,200.96,7.57]
[1756580242990,7.95,201.01,200.95,4.18001492]
[1756580243494,7.95,201.01,200.95,11.75001492]
[1756580244990,11.06468242,201.01,200.95,7.57]
[1756580246696,7.95,201.01,200.95,7.57]
[1756580247296,0.03247974,201.02,200.95,7.57]
[1756580258413,0.03247974,201.02,200.95,11.75001492]
[1756580259016,0.03247974,201.02,200.96,7.53]
[1756580259317,1.99623359,201.01,200.96,7.53]
[1756580259612,0.03247974,201.02,200.96,7.53]
[1756580259818,0.03247974,201.02,200.99,1.99623359]
[1756580260117,0.03247974,201.02,200.97,1.99623359]
[1756580260317,0.03247974,201.02,200.98,7.53]
[1756580260713,0.03247974,201.02,200.97,9.52623359]
[1756580260912,0.03247974,201.02,200.98,7.53]
[1756580262622,0.03247974,201.02,200.97,1.99623359]
[1756580262815,7.95,201.01,200.98,7.53]
[1756580263012,2.02871333,201.02,200.96,4.18001492]
[1756580263616,2.02871333,201.02,200.97,7.53]
[1756580264013,0.03247974,201.02,200.97,7.53]
[1756580264318,2.02871333,201.02,200.97,7.53]
[1756580264523,2.02871333,201.02,200.96,6.17624851]
[1756580264713,2.02871333,201.02,200.97,7.53]
[1756580264918,2.02871333,201.02,200.96,6.17624851]
[1756580265118,2.02871333,201.02,200.96,4.18001492]
[1756580265319,0.03247974,201.02,200.96,4.18001492]
[1756580266320,0.03247974,201.02,200.98,7.53]
[1756580267320,0.03247974,201.02,200.97,4.18001492]
[1756580267516,0.03247974,201.02,200.98,7.53]
[1756580267722,0.03247974,201.02,200.97,4.18001492]
[1756580267921,0.03247974,201.02,200.98,7.53]
[1756580268121,0.03247974,201.02,200.97,4.18001492]
[1756580268522,0.03247974,201.02,200.98,7.53]
[1756580268722,0.03247974,201.02,200.97,4.18001492]
[1756580269226,7.98247974,201.02,200.97,4.18001492]
[1756580269426,7.98247974,201.02,200.98,7.53]
[1756580269722,7.98247974,201.02,200.97,4.18001492]
[1756580269925,0.03247974,201.02,200.98,7.53]
[1756580270726,0.03247974,201.02,200.97,4.18001492]
[1756580271125,0.03247974,201.02,200.98,7.53]
[1756580271924,0.03247974,201.02,200.97,4.18001492]
[1756580272330,0.03247974,201.02,200.98,7.53]
[1756580272528,0.03247974,201.02,200.97,4.18001492]
[1756580272730,0.03247974,201.02,200.98,7.53]
[1756580273126,0.03247974,201.02,200.97,4.18001492]
[1756580273930,0.03247974,201.02,200.98,7.53]
[1756580274730,0.03247974,201.02,200.97,4.18001492]
[1756580275121,0.03247974,201.02,200.98,7.53]
[1756580275724,0.03247974,201.02,200.97,4.18001492]
[1756580276729,0.03247974,201.02,200.98,7.53]
[1756580277527,0.03247974,201.02,200.97,4.18001492]
[1756580277733,0.03247974,201.02,200.98,7.53]
[1756580278026,0.03247974,201.02,200.97,4.18001492]
[1756580278430,7.98247974,201.02,200.98,11.71001492]
[1756580278631,7.98247974,201.02,200.99,7.53]
[1756580279029,7.98247974,201.02,200.98,4.18001492]
[1756580279224,7.98247974,201.02,200.99,7.53]
[1756580279624,7.98247974,201.02,200.98,4.18001492]
[1756580280035,7.98247974,201.02,200.99,7.53]
[1756580280229,7.98247974,201.02,200.98,4.18001492]
[1756580280934,7.98247974,201.02,200.99,7.53]
[1756580281635,7.98247974,201.02,200.98,4.18001492]
[1756580281836,0.03247974,201.02,200.99,7.53]
[1756580282523,0.03247974,201.02,200.98,4.18001492]
[1756580282729,0.03247974,201.02,200.99,7.53]
[1756580282926,0.03247974,201.02,200.98,4.18001492]
[1756580283131,0.03247974,201.02,200.99,7.53]
[1756580283330,0.03247974,201.02,200.98,4.18001492]
[1756580283736,7.98247974,201.02,200.99,7.53]
[1756580285135,0.03247974,201.02,200.99,7.53]
[1756580285940,0.03247974,201.02,200.98,4.18001492]
[1756580286133,0.03247974,201.02,200.99,7.53]
[1756580287240,0.03247974,201.02,200.98,4.18001492]
[1756580287435,0.03247974,201.02,200.99,7.67]
[1756580287640,0.03247974,201.02,200.98,4.18001492]
[1756580287834,0.03247974,201.02,200.99,7.67]
[1756580288043,0.03247974,201.02,200.99,4.18001492]
[1756580288241,0.03247974,201.02,201.0,7.67]
[1756580288441,0.03247974,201.02,200.99,4.18001492]
[1756580288641,0.03247974,201.02,201.0,7.67]
[1756580288843,0.03247974,201.02,200.99,4.18001492]
[1756580289043,0.03247974,201.02,201.0,7.67]
[1756580289545,0.03247974,201.02,201.01,11.85001492]
[1756580289933,1.99582624,201.04,201.01,4.18001492]
[1756580290139,1.99582624,201.04,201.01,7.67]
[1756580290341,2.02785375,201.04,201.0,4.18001492]
[1756580290946,2.02785375,201.04,201.01,7.67]
[1756580291446,2.02785375,201.04,201.0,4.18001492]
[1756580291843,2.02785375,201.04,201.01,7.67]
[1756580292247,1.99582624,201.02,201.01,7.67]
[1756580295643,0.03202751,201.04,200.99,4.18001492]
[1756580295843,1.99582624,201.03,201.0,7.67]
[1756580296042,1.99582624,201.03,200.99,4.18001492]
[1756580296242,1.99582624,201.03,201.0,7.67]
[1756580296748,1.99582624,201.03,200.99,4.18001492]
[1756580296949,1.99582624,201.03,201.0,7.67]
[1756580297843,1.99582624,201.03,200.99,4.18001492]
[1756580298447,1.99582624,201.03,201.0,7.67]
[1756580299348,1.99582624,201.03,200.99,4.18001492]
[1756580299649,1.99582624,201.03,201.0,7.67]
[1756580300347,1.99582624,201.03,200.99,4.18001492]
[1756580300947,1.99582624,201.03,201.0,7.67]
[1756580301145,1.99582624,201.03,200.99,4.18001492]
[1756580301345,1.99582624,201.03,201.0,7.67]
[1756580302149,1.99582624,201.03,200.99,4.18001492]
[1756580302351,1.99582624,201.03,201.0,7.67]
[1756580302553,1.99582624,201.03,200.99,4.18001492]
[1756580303052,1.99582624,201.03,201.0,7.67]
[1756580303551,1.99582624,201.03,200.99,4.18001492]
[1756580304655,1.99582624,201.03,201.0,7.67]
[1756580305549,1.99582624,201.03,200.99,4.18001492]
[1756580306549,1.99582624,201.03,201.0,7.67]
[1756580306855,1.99582624,201.03,200.99,4.18001492]
[1756580307154,1.99582624,201.03,201.0,7.67]
[1756580307654,1.99582624,201.03,200.99,4.18001492]
[1756580308149,1.99582624,201.03,200.99,4.19212785]
[1756580308353,1.99582624,201.03,201.0,7.67]
[1756580308654,1.99582624,201.03,200.99,4.19212785]
[1756580308855,1.99582624,201.03,201.0,7.67]
[1756580309355,1.99582624,201.03,200.99,4.19212785]
[1756580309654,1.99582624,201.03,201.0,7.67]
[1756580310645,1.99582624,201.03,200.99,4.19212785]
[1756580310851,1.99582624,201.03,201.0,7.67]
[1756580311055,1.99582624,201.03,200.99,4.19212785]
[1756580311556,1.99582624,201.03,201.0,7.67]
[1756580311956,1.99582624,201.03,200.99,4.19212785]
[1756580313058,1.99582624,201.03,201.0,7.67]
[1756580314054,1.99582624,201.03,200.99,4.19212785]
[1756580314252,1.99582624,201.03,201.0,7.67]
[1756580314447,1.99582624,201.03,200.99,4.19212785]
[1756580314653,1.99582624,201.03,201.0,7.67]
[1756580314855,1.99582624,201.03,200.99,4.19212785]
[1756580315759,1.99582624,201.03,201.0,7.67]
[1756580316155,1.99582624,201.03,200.99,4.19212785]
[1756580316560,1.99582624,201.03,201.0,7.67]
[1756580317259,1.99582624,201.03,200.99,4.19212785]
[1756580317458,1.99582624,201.03,201.0,7.46]
[1756580317650,1.99582624,201.03,200.99,4.19212785]
[1756580318053,1.99582624,201.03,201.0,7.46]
[1756580319356,1.99582624,201.03,200.99,4.19212785]
[1756580319553,1.99582624,201.03,201.0,7.46]
[1756580320061,1.99582624,201.03,200.99,4.19212785]
[1756580320256,1.99582624,201.03,201.0,7.46]
[1756580320865,1.99582624,201.03,200.99,4.19212785]
[1756580321163,1.99582624,201.03,201.0,7.46]
[1756580321563,1.99582624,201.03,200.99,4.19212785]
[1756580321763,1.99582624,201.03,201.0,7.46]
[1756580321963,1.99582624,201.03,200.99,4.19212785]
[1756580322164,1.99582624,201.03,201.0,7.46]
[1756580322364,9.59582624,201.03,201.0,7.46]
[1756580322664,9.59582624,201.03,200.99,4.19212785]
[1756580322964,9.59582624,201.03,201.0,7.46]
[1756580323360,9.59582624,201.03,200.99,4.19212785]
[1756580324159,9.59582624,201.03,201.0,7.46]
[1756580324468,0.03202751,201.04,201.0,7.46]
[1756580324764,0.03202751,201.04,201.02,4.19212785]
[1756580324967,0.03202751,201.04,201.03,7.46]
[1756580336186,2.02785375,201.04,201.03,7.46]
[1756580336584,9.62785375,201.04,201.03,7.46]
[1756580337086,2.02785375,201.04,201.03,7.46]
[1756580355299,0.03202751,201.04,201.03,7.46]
[1756580355496,0.03202751,201.04,201.03,13.64795409]
[1756580356301,1.99582624,201.1,201.04,7.31]
[1756580356503,1.99582624,201.1,201.06,7.31]
[1756580356899,1.99582624,201.1,201.07,7.31]
[1756580363699,334.32,201.16,201.08,7.31]
[1756580363700,1.99582624,201.14,201.08,7.31]
[1756580363904,1.99582624,201.12,201.05,6.17630941]
[1756580364105,1.99582624,201.12,201.06,7.31]
[1756580371109,1.99582624,201.11,201.06,7.31]
[1756580375405,7.66,201.15,201.06,7.31]
[1756580375713,1.99582624,201.14,201.08,7.31]
[1756580377216,1.99582624,201.13,201.08,7.31]
[1756580377904,9.41582624,201.13,201.08,7.83]
[1756580382411,9.41582624,201.13,201.07,1.99582624]
[1756580382618,9.41582624,201.13,201.08,7.83]
[1756580383914,9.41582624,201.13,201.07,1.99582624]
[1756580384214,9.41582624,201.13,201.08,7.83]
[1756580384808,9.41582624,201.13,201.07,1.99582624]
[1756580385004,9.41582624,201.13,201.08,7.83]
[1756580387010,9.41582624,201.13,201.07,1.99582624]
[1756580387211,1.99582624,201.13,201.07,1.99582624]
[1756580388215,9.41582624,201.13,201.08,7.83]
[1756580388714,1.99582624,201.13,201.07,1.99582624]
[1756580389911,9.41582624,201.13,201.08,7.83]
[1756580390217,7.42,201.08,201.02,12.01048317]
[1756580390417,7.42,201.08,201.02,7.83]
[1756580391611,122.24551017,201.19,201.02,7.83]
[1756580391612,7.42,201.06,201.02,7.83]
[1756580392008,9.41582624,201.07,201.01,9.82582624]
[1756580392214,9.41582624,201.07,201.01,14.00630941]
[1756580393618,9.41582624,201.07,201.01,14.00094668]
[1756580395517,1.99582624,201.09,201.03,1.99582624]
[1756580396018,1.99582624,201.09,201.04,7.83]
[1756580396217,1.99582624,201.09,201.03,1.99582624]
[1756580396614,1.99582624,201.09,201.04,7.83]
[1756580397013,1.99582624,201.09,201.03,1.99582624]
[1756580397713,7.42,201.08,201.03,1.99582624]
[1756580397918,1.99582624,201.09,201.03,1.99582624]
[1756580398719,1.99582624,201.09,201.03,9.82582624]
[1756580398916,7.42,201.08,201.02,6.17094668]
[1756580399212,7.42,201.08,201.02,9.82582624]
[1756580400220,1.99582624,201.09,201.02,14.00094668]
[1756580400419,7.42,201.08,201.02,6.17094668]
[1756580400813,7.42,201.08,201.03,7.83]
[1756580401011,9.41582624,201.09,201.03,7.83]
[1756580402014,7.42,201.08,201.05,7.83]
[1756580402423,7.42,201.08,201.02,14.00094668]
[1756580403818,1.99582624,201.09,201.02,9.82582624]
[1756580404020,7.42,201.06,201.01,4.17512044]
[1756580404224,7.42,201.06,201.0,1.99582624]
[1756580404423,1.99582624,201.03,200.98,4.17512044]
[1756580404626,1.99582624,201.03,200.97,4.17512044]
[1756580405626,9.41582624,201.03,200.97,12.00512044]
[1756580406221,9.41582624,201.03,200.97,7.83]
[1756580406721,1.99582624,201.01,200.96,4.17512044]
[1756580407026,1.99582624,201.01,200.96,7.83]
[1756580408429,7.69,201.0,200.96,7.83]
[1756580408729,1.99582624,201.01,200.96,7.61]
[1756580408930,9.68582624,201.02,200.96,7.61]
[1756580410127,7.69,201.05,201.0,1.99582624]
[1756580410330,9.68582624,201.06,201.0,1.99582624]
[1756580411633,1.99582624,201.04,200.99,7.61]
[1756580411825,7.69,201.03,200.98,9.60582624]
[1756580412126,1.99582624,201.04,200.98,9.60582624]
[1756580412332,9.68582624,201.04,200.98,9.60582624]
[1756580413332,7.69,201.04,200.98,7.61]
[1756580430650,7.69,201.04,200.96,4.17512044]
[1756580430846,7.69,201.06,200.96,7.61]
[1756580431252,7.69,201.06,200.96,11.78512044]
[1756580431554,7.69,201.06,200.97,7.61]
[1756580433263,1.99570209,201.04,200.97,9.60570209]
[1756580433461,7.69,201.03,200.97,9.60570209]
[1756580434263,7.69,201.03,200.97,13.78082253]
[1756580439261,1.99570209,201.02,200.97,11.78512044]
[1756580439466,1.99570209,201.02,200.97,7.61]
[1756580439467,7.83,201.01,200.97,7.61]
[1756580439666,1.99570209,201.02,200.97,7.61]
[1756580440266,7.83,201.01,200.97,7.61]
[1756580440665,1.99570209,201.02,200.97,7.61]
[1756580441871,7.83,201.01,200.97,7.61]
[1756580442568,1.99570209,201.0,200.96,4.17512044]
[1756580442770,1.99570209,201.0,200.96,7.71]
[1756580442771,7.83,200.99,200.96,7.71]
[1756580444068,7.83,200.99,200.96,11.88512044]
[1756580444466,5.54097856,201.1,200.97,11.88512044]
[1756580444769,7.83,201.01,200.98,7.71]
[1756580445173,7.83,201.01,200.97,4.17512044]
[1756580445469,1.99570209,201.02,200.97,4.17512044]
[1756580445672,1.99570209,201.02,200.97,11.88512044]
[1756580445872,7.83,201.01,200.98,7.71]
[1756580446468,1.99570209,201.02,200.98,7.71]
[1756580446672,7.83,201.01,200.97,11.88512044]
[1756580446869,7.83,201.01,200.98,7.71]
[1756580447272,7.83,201.01,200.98,11.88512044]
[1756580449474,5.54097856,201.11,200.98,11.88512044]
[1756580449475,9.82570209,201.06,201.0,7.71]
[1756580449675,9.82570209,201.06,201.0,11.88512044]
[1756580449973,7.83,201.05,201.02,7.71]
[1756580450973,9.82570209,201.06,201.01,4.17512044]
[1756580451174,7.83,201.06,201.01,4.17512044]
[1756580451779,7.83,201.06,201.02,1.99570209]
[1756580451974,7.83,201.06,201.03,11.88512044]
[1756580452772,7.83,201.09,201.04,1.99570209]
[1756580452975,7.83,201.1,201.05,7.71]
[1756580453371,1.99570209,201.11,201.05,7.71]
[1756580453578,7.83,201.1,201.05,7.71]
[1756580453882,7.83,201.11,201.05,7.71]
[1756580456584,7.83,201.11,201.07,7.71]
[1756580457480,129.07,201.14,201.08,1.99570209]
[1756580457679,9.82570209,201.14,201.08,1.99570209]
[1756580457874,9.82570209,201.14,201.08,6.17082253]
[1756580457875,7.83,201.14,201.08,6.17082253]
[1756580458077,1.99570209,201.16,201.11,7.71]
[1756580458473,7.83,201.15,201.11,7.71]
[1756580458679,1.99570209,201.16,201.11,7.71]
[1756580459080,7.83,201.15,201.11,7.71]
[1756580459383,7.83,201.17,201.11,7.71]
[1756580462182,7.83,201.17,201.08,7.71]
[1756580462377,3.11475482,201.18,201.08,7.71]
[1756580462378,7.83,201.14,201.08,7.71]
[1756580462583,7.83,201.14,201.05,7.71]
[1756580463782,7.83,201.14,201.06,7.71]
[1756580463989,7.83,201.17,201.09,7.71]
[1756580468083,7.68,201.22,201.13,7.42]
[1756580468484,7.68,201.22,201.14,7.42]
[1756580470886,7.68,201.25,201.14,7.42]
[1756580471086,7.68,201.25,201.09,15.5861513]
[1756580471087,7.68,201.25,201.17,7.42]
[1756580472989,7.68,201.29,201.2,7.42]
[1756580479592,7.68,201.29,201.23,7.42]
[1756580479787,7.68,201.33,201.23,7.42]
[1756580480388,7.68,201.33,201.25,3.11475482]
[1756580480583,7.68,201.33,201.26,7.42]
[1756580488398,7.68,201.31,201.22,10.53475482]
[1756580488597,3.11475482,201.32,201.22,10.53475482]
[1756580488800,7.68,201.31,201.22,10.53475482]
[1756580489093,3.11475482,201.32,201.22,10.53475482]
[1756580489300,7.68,201.31,201.22,10.53475482]
[1756580489495,3.11475482,201.32,201.22,10.53475482]
[1756580489899,7.68,201.31,201.22,10.53475482]
[1756580490094,3.11475482,201.32,201.22,10.53475482]
[1756580490295,7.68,201.31,201.22,10.53475482]
[1756580490492,7.68,201.31,201.22,7.42]
[1756580493204,7.68,201.31,201.23,7.42]
[1756580498900,3.11475482,201.33,201.24,3.11475482]
[1756580499096,337.23475482,201.4,201.18,92.18567141]
[1756580499097,7.71,201.35,201.27,3.11475482]
[1756580499300,7.71,201.35,201.28,7.87]
[1756580501907,10.82475482,201.39,201.28,7.87]
[1756580502306,7.71,201.39,201.31,7.87]
[1756580503607,7.71,201.38,201.28,7.87]
[1756580504609,3.11475482,201.39,201.28,7.87]
[1756580504610,3.11475482,201.39,201.28,10.98475482]
[1756580504810,7.71,201.38,201.28,10.98475482]
[1756580505309,3.11475482,201.39,201.28,10.98475482]
[1756580505502,7.71,201.38,201.28,10.98475482]
[1756580508311,7.71,201.38,201.29,7.87]
[1756580520917,3.11475482,201.36,201.29,7.87]
[1756580521220,3.11475482,201.36,201.25,5.53484967]
[1756580521221,7.71,201.35,201.26,7.87]
[1756580522720,3.11475482,201.33,201.26,7.87]
[1756580522919,7.71,201.32,201.26,7.87]
[1756580523922,7.71,201.32,201.23,12.0361513]
[1756580524514,7.71,201.29,201.23,7.87]
[1756580525423,7.71,201.26,201.2,7.87]
[1756580528215,7.71,201.26,201.18,96.3497175]
[1756580528420,8.0,201.23,201.18,92.18567141]
[1756580528621,3.11475482,201.24,201.18,92.18567141]
[1756580528823,8.0,201.23,201.18,92.18567141]
[1756580529121,11.11475482,201.24,201.18,92.18567141]
[1756580530920,11.11475482,201.24,201.19,7.71]
[1756580531421,11.11475482,201.24,201.18,92.18567141]
[1756580532725,11.11475482,201.24,201.19,7.71]
[1756580533125,11.11475482,201.24,201.18,92.18567141]
[1756580533920,11.11475482,201.24,201.19,7.71]
[1756580534120,11.11475482,201.24,201.18,92.18567141]
[1756580534327,3.11475482,201.28,201.19,7.71]
[1756580534518,3.11475482,201.31,201.21,3.11475482]
[1756580534718,11.11475482,201.32,201.22,7.71]
[1756580535627,8.0,201.32,201.22,7.71]
[1756580536725,3.11475482,201.36,201.25,7.71]
[1756580536931,8.0,201.35,201.25,7.71]
[1756580542733,13.38,201.37,201.25,7.71]
[1756580542734,8.0,201.32,201.25,7.71]
[1756580550643,11.11475482,201.32,201.25,7.71]
[1756580551946,11.11475482,201.32,201.2,3.11475482]
[1756580552145,11.11475482,201.32,201.21,7.71]
[1756580553947,8.0,201.28,201.18,92.18567141]
[1756580554149,11.11475482,201.26,201.18,99.89567141]
[1756580554656,11.11475482,201.26,201.19,7.71]
[1756580557149,8.0,201.26,201.19,7.71]
[1756580559947,7.78,201.3,201.2,7.5]
[1756580560351,10.89475482,201.3,201.2,7.5]
[1756580560676,7.78,201.26,201.2,7.5]
[1756580564244,17.36097856,201.34,201.18,92.18567141]
[1756580564245,3.11475482,201.24,201.18,92.18567141]
[1756580564550,7.78,201.23,201.16,7.5]
[1756580565055,7.78,201.2,201.12,7.5]
[1756580566156,7.78,201.2,201.13,11.66404609]
[1756580566351,7.78,201.2,201.13,7.5]
[1756580567157,7.78,201.2,201.12,4.16404609]
[1756580567158,3.11475482,201.24,201.14,7.5]
[1756580567455,3.11475482,201.24,201.16,7.5]
[1756580568350,7.78,201.25,201.17,7.5]
[1756580568854,7.78,201.25,201.17,11.66404609]
[1756580569356,7.78,201.25,201.17,7.5]
[1756580571654,7.78,201.25,201.18,7.5]
[1756580578660,7.78,201.25,201.18,11.66242273]
[1756580579863,7.78,201.25,201.18,7.5]
[1756580580466,7.78,201.25,201.15,8.64960449]
[1756580580467,7.78,201.25,201.16,4.16242273]
[1756580580763,7.78,201.25,201.15,10.61475482]
[1756580580764,7.78,201.25,201.17,4.16242273]
[1756580580960,7.78,201.25,201.18,7.5]
[1756580581162,7.78,201.3,201.19,7.5]
[1756580581360,7.78,201.3,201.22,11.66242273]
[1756580581563,7.78,201.3,201.23,11.66242273]
[1756580581759,7.78,201.3,201.24,4.16242273]
[1756580581956,7.78,201.3,201.24,3.11475482]
[1756580582665,7.78,201.3,201.24,7.27717755]
[1756580582966,7.78,201.3,201.24,3.11475482]
[1756580583164,7.78,201.3,201.24,7.27717755]
[1756580583364,7.78,201.3,201.24,3.11475482]
[1756580583770,7.78,201.3,201.24,7.27717755]
[1756580584267,7.78,201.3,201.24,3.11475482]
[1756580584464,7.78,201.3,201.24,7.27717755]
[1756580584661,7.78,201.3,201.24,3.11475482]
[1756580586567,7.78,201.34,201.25,11.66242273]
[1756580586774,7.78,201.34,201.26,7.5]
[1756580586968,7.78,201.34,201.27,7.27717755]
[1756580588272,7.78,201.34,201.27,3.11475482]
[1756580588770,7.78,201.34,201.27,7.27717755]
[1756580589167,3.11475482,201.37,201.26,11.66242273]
[1756580589168,7.42,201.36,201.26,11.66242273]
[1756580589374,7.42,201.36,201.26,7.5]
[1756580599079,7.42,201.36,201.27,3.11475482]
[1756580599284,7.42,201.36,201.28,7.8]
[1756580599583,3.11475482,201.32,201.24,7.8]
[1756580599778,7.42,201.31,201.24,7.8]
[1756580599973,7.42,201.37,201.25,7.8]
[1756580600181,7.42,201.37,201.27,3.11475482]
[1756580600478,7.42,201.37,201.28,7.8]
[1756580612982,3.11475482,201.35,201.28,7.8]
[1756580613286,7.42,201.34,201.25,7.8]
[1756580615690,7.42,201.32,201.25,7.8]
[1756580617789,3.11475482,201.3,201.25,7.8]
[1756580617990,3.11475482,201.3,201.22,7.61]
[1756580620191,3.11475482,201.3,201.22,11.77242273]
[1756580621194,3.11475482,201.3,201.22,7.61]
[1756580621395,7.69,201.26,201.19,7.61]
[1756580623092,7.69,201.29,201.19,7.61]
[1756580623693,10.80475482,201.26,201.19,7.61]
[1756580624993,3.11475482,201.29,201.19,7.61]
[1756580629298,7.69,201.3,201.19,7.61]
[1756580629502,7.69,201.3,201.21,7.61]
[1756580634292,7.69,201.3,201.19,4.16242273]
[1756580634293,7.69,201.24,201.17,7.61]
[1756580634497,7.69,201.21,201.14,7.61]
[1756580635202,3.11475482,201.22,201.14,7.61]
[1756580635601,3.11475482,201.22,201.14,11.77242273]
[1756580635800,3.11475482,201.22,201.15,7.61]
[1756580637300,3.11475482,201.22,201.16,7.61]
[1756580640501,3.11475482,201.28,201.16,10.72475482]